bitfinex/quotes_ETHUSD_20230117
["timestamp","ask_amount","ask_price","bid_price","bid_amount"]
[1673967773752,0.20438005,1586.0,1585.5,19.00352534]
[1673967774066,0.20438005,1586.0,1585.5,18.97893534]
[1673967774067,1.20438005,1586.0,1585.5,18.97893534]
[1673967774292,3.26638182,1585.8,1585.5,0.05771534]
[1673967774543,0.32663818,1585.7,1585.4,0.05771534]
[1673967774713,0.79983818,1585.7,1585.4,0.002]
[1673967774921,0.79983818,1585.7,1585.2,6.36570534]
[1673967775486,3.91646225,1585.7,1585.2,6.36570534]
[1673967775665,3.91646225,1585.7,1585.2,0.05771534]
[1673967775666,10.36405125,1585.7,1585.2,0.05771534]
[1673967776014,10.36405125,1585.7,1585.1,6.30844]
[1673967776015,7.30719,1585.5,1585.1,0.05771534]
[1673967776189,0.4733,1585.4,1585.0,0.05771534]
[1673967776438,0.4733,1585.4,1584.9,6.36696534]
[1673967776629,0.4733,1585.4,1585.0,6.30914]
[1673967776841,0.141219,1585.6,1585.1,3.11662407]
[1673967777101,0.141219,1585.6,1585.2,18.92505]
[1673967777293,0.2553409,1585.6,1585.2,12.67441534]
[1673967777470,3.58982407,1585.5,1585.2,0.05771534]
[1673967777680,3.58982407,1585.5,1585.0,6.30914]
[1673967777681,3.58982407,1585.5,1585.0,0.05771534]
[1673967777909,0.4732,1585.5,1585.0,12.61822]
[1673967778116,0.4732,1585.5,1585.0,12.67593534]
[1673967778896,0.614419,1585.6,1585.0,15.79255941]
[1673967779108,0.614419,1585.6,1585.0,12.67593534]
[1673967779326,0.141219,1585.6,1585.0,12.67593534]
[1673967779626,0.143219,1585.6,1585.2,18.92461]
[1673967779786,0.141219,1585.6,1585.2,18.98232534]
[1673967780959,0.141219,1585.6,1585.2,6.36601534]
[1673967781176,0.141219,1585.6,1585.2,0.05771534]
[1673967781361,9.56460307,1585.6,1585.1,0.05771534]
[1673967781570,9.56460307,1585.6,1585.0,6.30908]
[1673967781571,0.95646031,1585.5,1585.0,6.36679534]
[1673967782365,0.95646031,1585.5,1585.0,7.36679534]
[1673967782892,0.95646031,1585.5,1585.0,6.36679534]
[1673967783046,1.42966031,1585.5,1585.0,6.36679534]
[1673967783251,10.38036438,1585.5,1585.0,0.05771534]
[1673967783471,1.03803644,1585.4,1585.0,3.0]
[1673967783881,10.46222051,1585.4,1584.9,12.67618534]
[1673967784245,10.52822051,1585.4,1584.9,12.67618534]
[1673967784430,3.58992407,1585.3,1584.9,0.05771534]
[1673967784640,3.58992407,1585.3,1584.7,6.31003]
[1673967784641,15.73347407,1585.2,1584.7,0.05771534]
[1673967784854,4.68997148,1585.1,1584.6,6.36820534]
[1673967785187,10.99889148,1585.1,1584.6,6.36820534]
[1673967785359,3.11662407,1585.0,1584.6,0.05771534]
[1673967785563,3.11662407,1585.0,1584.5,6.36846534]
[1673967785774,1.63934741,1585.1,1584.6,12.62131]
[1673967786042,9.78688644,1585.4,1584.7,3.11662407]
[1673967786043,0.066,1585.3,1584.7,3.11662407]
[1673967786194,3.11662407,1585.2,1584.6,6.36828534]
[1673967786405,0.066,1585.3,1584.8,12.61956]
[1673967786622,4.51133644,1585.4,1584.8,12.67727534]
[1673967786870,3.11662407,1585.3,1584.8,12.67727534]
[1673967787072,4.51019012,1585.3,1584.8,12.67727534]
[1673967787246,1.57733644,1585.4,1584.8,12.67727534]
[1673967787455,20.1661,1585.5,1584.8,17.70289941]
[1673967787664,20.1661,1585.5,1584.9,3.0]
[1673967787665,19.6929,1585.5,1584.9,3.0]
[1673967787928,19.6929,1585.5,1585.0,18.92646]
[1673967788141,0.066,1585.5,1585.0,18.98417534]
[1673967791144,0.141219,1585.6,1585.2,3.0]
[1673967791351,0.141219,1585.6,1585.2,12.6165]
[1673967791583,0.141219,1585.6,1585.3,12.61572]
[1673967791795,0.141219,1585.6,1585.3,12.67343534]
[1673967792335,0.141219,1585.6,1585.3,0.05771534]
[1673967792517,0.87894587,1585.6,1585.2,6.36586534]
[1673967793077,10.30234994,1585.6,1585.2,0.05771534]
[1673967793263,10.30434994,1585.6,1585.2,0.05571534]
[1673967793487,10.36834994,1585.6,1585.1,9.36617534]
[1673967794236,0.207219,1585.6,1585.1,15.67492534]
[1673967794544,0.141219,1585.6,1585.1,15.67492534]
[1673967795339,3.25784307,1585.6,1585.1,15.67492534]
[1673967795601,3.25784307,1585.6,1585.1,0.05771534]
[1673967795602,10.49418277,1585.6,1585.1,0.05771534]
[1673967795811,3.58982407,1585.5,1585.0,6.36657534]
[1673967795975,9.42419407,1585.4,1585.0,0.05771534]
[1673967796186,9.42419407,1585.4,1585.0,0.002]
[1673967796187,3.11662407,1585.3,1585.0,0.002]
[1673967796395,3.11662407,1585.3,1584.7,0.05771534]
[1673967796396,1.29483835,1585.0,1584.7,0.05771534]
[1673967796607,1.29483835,1585.0,1584.7,6.31031]
[1673967796953,1.29483835,1585.0,1584.7,6.36802534]
[1673967797123,0.00383835,1585.0,1584.7,12.67836534]
[1673967798040,0.00383835,1585.0,1584.8,3.11662407]
[1673967798172,0.00383835,1585.0,1584.9,18.92862]
[1673967798384,0.00383835,1585.0,1584.9,19.21633534]
[1673967798611,0.00383835,1585.0,1584.9,6.36725534]
[1673967799130,0.63783835,1585.0,1584.9,0.05771534]
[1673967799344,0.63783835,1585.0,1584.9,0.052]
[1673967799514,0.00383835,1585.0,1584.6,9.31052]
[1673967799869,0.00383835,1585.0,1584.7,12.62052]
[1673967800039,0.00383835,1585.0,1584.7,15.79485941]
[1673967800443,0.00383835,1585.0,1584.9,18.92862]
[1673967800659,0.00383835,1585.0,1584.9,12.67679534]
[1673967800925,0.00383835,1585.0,1584.9,6.36725534]
[1673967801297,0.63783835,1585.0,1584.9,0.05466515]
[1673967801523,0.63783835,1585.0,1584.8,0.05666515]
[1673967801736,0.63783835,1585.0,1584.7,0.05666515]
[1673967801737,0.00383835,1585.0,1584.7,0.05666515]
[1673967802046,0.00383835,1585.0,1584.8,12.61974]
[1673967802269,0.00383835,1585.0,1584.8,12.67640515]
[1673967802445,0.00383835,1585.0,1584.8,15.79302922]
[1673967802662,0.00383835,1585.0,1584.9,4.0]
[1673967802981,0.00383835,1585.0,1584.9,18.41450559]
[1673967803227,0.00383835,1585.0,1584.9,9.36620515]
[1673967803762,0.00383835,1585.0,1584.9,17.24120053]
[1673967804343,0.00383835,1585.0,1584.9,4.62212053]
[1673967804549,0.00383835,1585.0,1584.9,4.56545538]
[1673967804967,0.00383835,1585.0,1584.9,11.87499538]
[1673967805178,0.00383835,1585.0,1584.9,18.24120053]
[1673967805388,2.53421504,1585.6,1584.9,23.00872864]
[1673967805618,1.08096075,1585.6,1585.1,2.85222475]
[1673967805914,0.141219,1585.6,1585.2,27.83652945]
[1673967806122,0.141219,1585.6,1585.3,1.56505607]
[1673967806438,1.08096075,1585.6,1585.3,6.3076]
[1673967806688,0.141219,1585.6,1585.4,6.30752]
[1673967806860,0.141219,1585.6,1585.4,12.66773515]
[1673967807070,0.141219,1585.6,1585.4,12.67173515]
[1673967807322,0.14975775,1585.8,1585.4,12.67173515]
[1673967807323,0.14975775,1585.8,1585.6,1.0]
[1673967807527,0.93934898,1586.1,1585.7,5.02362407]
[1673967807751,0.004,1586.1,1586.0,1.912]
[1673967807917,2.575434,1586.4,1585.8,34.12635688]
[1673967808279,0.9394569,1586.2,1585.8,3.48400873]
[1673967808606,0.9394569,1586.1,1585.8,0.42734358]
[1673967808953,2.34836532,1586.1,1585.8,0.42734358]
[1673967809169,0.9394569,1586.1,1585.8,0.42734358]
[1673967809797,2.41775336,1586.3,1585.9,3.11662407]
[1673967809798,1.0054569,1586.3,1585.9,3.11662407]
[1673967810007,0.9394569,1586.3,1586.1,6.30477]
[1673967810217,1.6399771,1586.4,1586.1,6.36143515]
[1673967810218,1.10452558,1586.4,1586.1,6.36143515]
[1673967810464,0.16506868,1586.4,1586.1,6.36143515]
[1673967810674,0.16506868,1586.4,1586.2,9.30411]
[1673967810896,0.16506868,1586.4,1586.3,1.0]
[1673967811123,0.16506868,1586.4,1586.2,0.05666515]
[1673967811440,0.16506868,1586.4,1586.0,0.05666515]
[1673967811750,0.16506868,1586.4,1585.9,3.23]
[1673967811959,0.16506868,1586.4,1586.0,3.11662407]
[1673967812111,1.21497814,1586.4,1585.9,3.05466515]
[1673967812486,0.27552124,1586.4,1585.8,9.78985873]
[1673967812632,0.16506868,1586.4,1585.8,9.7446256]
[1673967812839,0.16506868,1586.4,1585.9,6.53517]
[1673967813053,0.16506868,1586.4,1586.0,3.0]
[1673967813054,0.63806868,1586.4,1586.0,3.0]
[1673967813278,0.63806868,1586.4,1585.9,0.05666515]
[1673967813487,0.9394569,1586.3,1585.8,0.4387756]
[1673967813743,0.473,1586.2,1585.8,0.38211045]
[1673967813908,0.473,1586.2,1585.8,6.68794045]
[1673967814120,0.473,1586.3,1585.8,0.4387756]
[1673967814316,1.41030574,1586.3,1585.8,0.38211045]
[1673967814526,0.14103057,1586.2,1585.8,0.38211045]
[1673967815400,3.58972407,1586.1,1585.8,0.38211045]
[1673967815576,3.11662407,1586.0,1585.8,0.38211045]
[1673967815786,0.4731,1585.9,1585.8,0.38211045]
[1673967816314,3.11662407,1585.9,1585.8,0.38211045]
[1673967816565,3.47559648,1585.9,1585.8,0.38211045]
[1673967816966,4.47559648,1585.9,1585.8,0.38211045]
[1673967817535,1.35897241,1585.9,1585.8,0.38211045]
[1673967817682,1.4731,1586.0,1585.8,0.38211045]
[1673967817890,0.4731,1586.0,1585.8,0.38211045]
[1673967818243,1.14648747,1586.2,1585.8,0.38211045]
[1673967818244,0.4731,1586.1,1585.8,0.38211045]
[1673967818570,1.08048747,1586.2,1585.8,0.38211045]
[1673967818785,0.9394569,1586.3,1585.8,6.68795045]
[1673967818978,20.20602558,1586.4,1585.8,13.0505756]
[1673967819189,0.70406868,1586.4,1585.8,16.16719967]
[1673967819405,0.16506868,1586.4,1585.8,16.8039414]
[1673967819610,1.10452558,1586.4,1585.8,13.68731733]
[1673967819803,0.11045256,1586.3,1585.8,13.0505756]
[1673967820120,0.16506868,1586.4,1585.8,13.0505756]
[1673967820559,1.10452558,1586.4,1585.8,6.7446156]
[1673967820775,1.10452558,1586.4,1585.8,13.0505756]
[1673967820988,5.63005807,1586.4,1585.8,13.7446156]
[1673967821306,5.63005807,1586.4,1585.8,7.4387756]
[1673967821307,4.05608097,1586.3,1585.8,7.4387756]
[1673967821665,3.83460828,1586.2,1585.8,7.4387756]
[1673967821779,0.8786081,1586.2,1585.8,7.4387756]
[1673967822236,3.11662407,1586.1,1585.8,7.4387756]
[1673967822424,0.4731,1586.0,1585.8,7.4387756]
[1673967822654,4.58972407,1586.0,1585.8,7.4387756]
[1673967822878,1.0,1585.8,1585.2,0.06]
[1673967823086,16.20288407,1585.7,1585.0,6.43413127]
[1673967823422,16.20288407,1585.7,1585.0,0.12509127]
[1673967823423,9.42349407,1585.6,1585.0,0.12509127]
[1673967823585,9.42349407,1585.6,1585.0,0.06309127]
[1673967823586,3.11662407,1585.5,1585.0,0.06309127]
[1673967823794,3.11662407,1585.4,1585.0,0.05909127]
[1673967824016,3.47560648,1585.4,1585.0,0.05909127]
[1673967824745,0.35898241,1585.4,1585.0,0.05909127]
[1673967824938,0.4732,1585.5,1585.0,6.36810127]
[1673967825312,3.11662407,1585.4,1585.0,0.12509127]
[1673967825619,3.11662407,1585.4,1585.0,0.05909127]
[1673967826194,0.066,1585.5,1585.0,9.36823127]
[1673967826440,50.80150083,1585.9,1585.4,7.24674186]
[1673967826441,42.65368083,1585.9,1585.4,7.24674186]
[1673967826675,8.19677415,1585.8,1585.4,1.00519186]
[1673967826827,3.11662407,1585.7,1585.4,0.93919186]
[1673967827043,3.18262407,1585.8,1585.4,0.93919186]
[1673967827246,3.18262407,1585.8,1585.4,7.24674186]
[1673967827247,0.002,1585.8,1585.4,7.24674186]
[1673967827454,0.002,1585.8,1585.4,1.00519186]
[1673967827455,3.11662407,1585.8,1585.4,1.00519186]
[1673967827681,3.11662407,1585.8,1585.4,0.93919186]
[1673967827888,0.31166241,1585.7,1585.4,0.93919186]
[1673967828099,9.73469648,1585.7,1585.4,0.93919186]
[1673967828314,9.80067648,1585.7,1585.4,0.93919186]
[1673967829094,0.066,1585.7,1585.4,7.24653186]
[1673967829399,0.4731,1585.9,1585.4,7.24653186]
[1673967829400,3.11662407,1585.6,1585.4,1.00519186]
[1673967829591,3.11662407,1585.6,1585.4,0.94319186]
[1673967829927,0.5392,1585.7,1585.4,0.93919186]
[1673967830147,3.11662407,1585.5,1585.4,0.93919186]
[1673967830296,0.78486241,1585.5,1585.4,0.93919186]
[1673967830506,0.4732,1585.5,1585.4,0.93919186]
[1673967830740,6.77998,1585.6,1585.4,0.93919186]
[1673967831087,0.5392,1585.6,1585.4,0.93919186]
[1673967831254,3.58982407,1585.6,1585.4,0.93919186]
[1673967831813,0.066,1585.7,1585.5,12.6143]
[1673967832138,0.066,1586.0,1585.5,15.79692407]
[1673967832304,1.00162449,1586.1,1585.7,12.61256]
[1673967832519,0.93562449,1586.2,1585.7,12.67856]
[1673967832733,0.93562449,1586.3,1585.7,15.79518407]
[1673967832941,0.93562449,1586.3,1585.8,3.0]
[1673967833160,2.57560159,1586.4,1585.9,12.61072]
[1673967833365,1.54612867,1586.4,1585.9,12.67672]
[1673967833611,2.34453291,1586.3,1585.9,0.066]
[1673967833764,2.34453291,1586.3,1585.9,0.012]
[1673967833765,0.93562449,1586.2,1585.9,0.012]
[1673967833979,0.93562449,1586.2,1585.7,6.37217]
[1673967834394,1.93562449,1586.2,1585.7,0.066]
[1673967834617,1.12918694,1586.1,1585.7,0.002]
[1673967834829,1.12918694,1586.1,1585.7,6.30632]
[1673967835043,1.12918694,1586.1,1585.7,0.066]
[1673967835044,7.90712694,1586.1,1585.7,0.066]
[1673967835287,7.97312694,1586.1,1585.4,7.31250186]
[1673967835497,0.79731269,1586.0,1585.4,13.61981186]
[1673967835657,1.60228694,1586.1,1585.4,13.61981186]
[1673967836197,6.12781943,1586.1,1585.4,13.61981186]
[1673967836391,0.066,1586.1,1585.7,1.909]
[1673967836598,1.10069317,1586.4,1585.7,23.94458407]
[1673967836859,2.50960159,1586.4,1585.7,24.01058407]
[1673967837075,2.50960159,1586.4,1585.8,3.11662407]
[1673967837400,1.10069317,1586.4,1585.9,18.9158]
[1673967837611,4.40925333,1586.4,1585.9,12.67648]
[1673967838528,3.11662407,1586.3,1585.9,0.066]
[1673967838741,0.93562449,1586.3,1585.8,12.67782]
[1673967838966,4.05224856,1586.3,1585.9,6.30553]
[1673967839183,5.18750248,1586.3,1585.9,6.37153]
[1673967839375,1.00162449,1586.3,1585.9,6.37153]
[1673967839706,0.93562449,1586.3,1585.9,12.67709]
[1673967839866,2.50960159,1586.4,1585.9,12.67709]
[1673967840078,0.93562449,1586.3,1585.9,12.67709]
[1673967840279,2.50960159,1586.4,1585.9,12.67709]
[1673967840487,1.10069317,1586.4,1585.9,12.67709]
[1673967840744,1.10069317,1586.4,1586.1,6.30469]
[1673967840907,1.10069317,1586.4,1586.1,6.37069]
[1673967841686,0.16506868,1586.4,1586.1,15.79208407]
[1673967842432,0.16506868,1586.4,1586.1,12.67546]
[1673967843772,3.53265291,1586.4,1586.1,0.066]
[1673967843995,3.53265291,1586.4,1586.0,0.066]
[1673967843996,0.93562449,1586.3,1586.0,0.066]
[1673967844203,2.34453291,1586.3,1585.9,6.3714]
[1673967844468,2.34453291,1586.3,1586.0,12.6103]
[1673967844650,0.93562449,1586.3,1586.0,12.6763]
[1673967844854,2.50960159,1586.4,1586.0,12.6763]
[1673967845065,0.16506868,1586.4,1586.1,3.11662407]
[1673967845280,0.16506868,1586.4,1586.2,22.02973407]
[1673967845625,0.16506868,1586.4,1586.2,22.09573407]
[1673967845811,0.16506868,1586.4,1586.3,5.25862407]
[1673967846022,0.94702807,1586.6,1586.4,0.16506867]
[1673967846023,0.01140358,1586.6,1586.4,0.16506867]
[1673967846256,4.21720823,1587.0,1586.4,0.16506867]
[1673967846257,0.16676867,1587.1,1586.5,4.00362407]
[1673967846491,0.16676867,1587.1,1586.6,6.11662407]
[1673967846492,0.004,1587.0,1586.6,6.11662407]
[1673967846655,0.16676867,1587.1,1586.8,3.11662407]
[1673967846866,1.25478508,1587.2,1587.1,18.9024]
[1673967847058,0.93761538,1587.6,1587.1,22.08502407]
[1673967847265,0.93761538,1587.7,1587.3,3.11662407]
[1673967847493,0.93761538,1587.7,1587.6,1.912]
[1673967847749,0.93761538,1587.8,1587.6,1.912]
[1673967848090,0.0056333,1587.9,1587.7,13.48382]
[1673967848275,0.0056333,1587.9,1587.7,7.25141]
[1673967848585,0.0056333,1587.9,1587.8,4.912]
[1673967848901,0.0056333,1587.9,1587.8,13.09295173]
[1673967849093,0.57791,1588.1,1587.9,0.0049967]
[1673967849423,0.57791,1588.1,1587.9,7.3024167]
[1673967849747,0.57791,1588.1,1588.0,5.124]
[1673967850050,0.57791,1588.1,1588.0,11.52176]
[1673967850420,0.57791,1588.1,1588.0,12.52176]
[1673967850421,1e-05,1588.1,1588.0,12.52176]
[1673967850630,1.1497164,1588.8,1588.0,12.52176]
[1673967850631,1.0897164,1588.8,1588.0,12.52176]
[1673967850889,1.0897164,1588.8,1588.2,8.20522]
[1673967850890,1.29868804,1588.8,1588.2,8.20522]
[1673967851108,1.29868804,1588.8,1588.3,3.11662407]
[1673967851258,1.29868804,1588.8,1588.4,9.41211407]
[1673967851259,1.0897164,1588.8,1588.4,9.41211407]
[1673967851470,1.0897164,1588.8,1588.4,0.066]
[1673967851786,1.0897164,1588.8,1588.0,0.066]
[1673967851787,0.4723,1588.7,1588.0,0.066]
[1673967852035,0.4723,1588.7,1587.8,0.066]
[1673967852266,0.62957535,1588.7,1588.0,6.2971]
[1673967852440,0.80810452,1588.7,1588.0,6.3611]
[1673967852794,1.0,1588.5,1587.7,0.06]
[1673967852959,0.4724,1588.4,1588.0,0.062]
[1673967853152,1.0,1588.3,1587.4,8.21547]
[1673967853520,8.0,1588.0,1587.4,0.066]
[1673967853711,8.0,1588.0,1587.0,6.36715]
[1673967853712,4.38912407,1587.9,1587.0,6.36715]
[1673967853924,3.11662407,1587.8,1587.0,0.066]
[1673967854236,0.4726,1587.7,1586.9,8.27953]
[1673967854427,0.007,1587.5,1587.0,6.30114]
[1673967854781,0.007,1587.5,1587.0,12.66833]
[1673967854936,0.009,1587.5,1587.0,12.66633]
[1673967855146,0.009,1587.5,1587.0,12.66833]
[1673967855147,0.007,1587.5,1587.0,12.66833]
[1673967855362,0.007,1587.5,1587.0,0.066]
[1673967855651,0.007,1587.5,1587.4,0.0056333]
[1673967855775,0.007,1587.5,1587.4,0.6626333]
[1673967855986,0.007,1587.5,1587.4,0.0056333]
[1673967855987,1.298,1587.5,1587.4,0.0056333]
[1673967856239,0.7708,1587.5,1587.4,0.0056333]
[1673967856443,0.641,1587.5,1587.4,0.0056333]
[1673967857249,4.23022407,1587.5,1587.4,0.0056333]
[1673967857918,3.59622407,1587.5,1586.7,1.978]
[1673967858090,0.4727,1587.4,1586.7,9.41884407]
[1673967858302,0.4727,1587.4,1586.7,9.48484407]
[1673967858507,3.11662407,1587.3,1586.7,0.066]
[1673967858720,0.31166241,1587.2,1586.7,6.30227]
[1673967858931,0.78436241,1587.2,1586.7,6.36827]
[1673967859484,0.4727,1587.3,1586.7,6.36827]
[1673967859628,8.0,1587.0,1586.4,0.22506867]
[1673967859845,3.58942407,1586.9,1586.7,0.052]
[1673967860009,3.58942407,1586.9,1586.4,0.16506867]
[1673967860010,3.11662407,1586.8,1586.4,0.16506867]
[1673967860225,0.4729,1586.7,1586.4,0.16506867]
[1673967860448,0.83185241,1586.7,1586.4,0.16506867]
[1673967860665,0.4729,1586.7,1586.4,0.16506867]
[1673967860899,1.4728,1586.9,1586.4,0.16506867]
[1673967861202,3.11662407,1586.8,1586.4,0.16506867]
[1673967861415,1.4729,1586.7,1586.4,0.16506867]
[1673967861831,0.4729,1586.7,1586.4,0.16506867]
[1673967862046,3.11662407,1586.6,1586.4,0.16506867]
[1673967862205,3.11662407,1586.5,1586.4,0.16506867]
[1673967862424,3.58952407,1586.5,1586.4,0.16506867]
[1673967862896,0.4729,1586.5,1586.4,0.16506867]
[1673967863047,3.58952407,1586.5,1586.4,0.16506867]
[1673967863416,3.99847648,1586.5,1586.4,0.16506867]
[1673967863570,10.30165648,1586.5,1585.7,6.37215]
[1673967863776,10.30165648,1586.5,1585.7,12.71384]
[1673967863777,4.06447648,1586.5,1585.7,12.71384]
[1673967864002,3.99847648,1586.5,1585.7,12.71384]
[1673967864214,0.066,1586.6,1585.7,12.71384]
[1673967864475,3.11662407,1586.6,1585.7,12.71384]
[1673967864777,3.11662407,1586.6,1585.7,12.67851]
[1673967865000,0.43155241,1586.7,1585.9,1.895]
[1673967865001,0.066,1586.7,1585.9,1.895]
[1673967865308,3.11662407,1586.6,1585.9,8.20039]
[1673967865454,0.31166241,1586.5,1585.9,0.006]
[1673967865669,0.31166241,1586.5,1585.9,6.30541]
[1673967865880,0.31166241,1586.5,1585.9,12.67697]
[1673967866139,6.84128,1586.7,1586.0,3.11662407]
[1673967866348,7.30193,1586.9,1586.7,0.39972319]
[1673967866564,10.48455407,1586.9,1586.7,0.39972319]
[1673967866778,9.48455407,1586.9,1586.7,0.39972319]
[1673967867201,3.18262407,1586.9,1586.7,0.39972319]
[1673967867356,1.57855741,1586.9,1586.7,0.39972319]
[1673967867560,0.066,1587.0,1586.7,0.39972319]
[1673967867829,6.46765,1587.2,1586.7,0.39972319]
[1673967867830,6.36665,1587.2,1586.7,0.39972319]
[1673967867992,1.0,1587.1,1586.7,0.39972319]
[1673967868211,6.30091,1587.1,1586.7,0.39972319]
[1673967868452,6.36691,1587.1,1586.7,0.39972319]
[1673967868885,0.066,1587.1,1586.7,6.70194319]
[1673967869194,6.30003,1587.3,1586.7,0.46572319]
[1673967869195,0.066,1587.3,1586.7,0.46572319]
[1673967869351,9.41729407,1587.2,1586.7,0.39972319]
[1673967869570,3.11662407,1587.1,1586.7,0.39972319]
[1673967869806,6.30159,1586.9,1586.7,0.39972319]
[1673967870011,11.10345848,1586.9,1586.7,0.39972319]
[1673967870203,17.40504848,1586.9,1586.7,0.39972319]
[1673967870417,3.11662407,1586.8,1586.7,0.39972319]
[1673967870650,16.72060407,1586.8,1586.7,0.39972319]
[1673967870860,17.25940407,1586.8,1586.7,0.39972319]
[1673967871052,19.77742792,1586.8,1586.7,0.39972319]
[1673967871669,19.77742792,1586.8,1586.0,0.066]
[1673967871670,23.73819546,1586.8,1586.0,0.066]
[1673967871875,8.53452423,1586.7,1585.8,6.37164]
[1673967872138,18.90966,1586.5,1585.8,6.37164]
[1673967872298,3.11662407,1586.4,1585.8,6.37164]
[1673967872507,9.42022407,1586.4,1585.8,6.37164]
[1673967872761,9.42022407,1586.4,1585.8,0.066]
[1673967872762,15.78982407,1586.4,1585.8,0.066]
[1673967872969,0.066,1586.4,1585.9,3.11662407]
[1673967873297,15.72381407,1586.4,1585.8,6.37186]
[1673967873482,15.72381407,1586.4,1585.8,0.066]
[1673967873483,15.72781407,1586.4,1585.8,0.066]
[1673967873694,0.539,1586.4,1585.9,15.72762407]
[1673967873903,0.473,1586.4,1585.9,15.84981258]
[1673967874113,0.5389,1586.5,1585.9,15.84981258]
[1673967874304,0.066,1586.6,1586.1,12.60917]
[1673967874519,0.4729,1586.7,1586.1,6.37057]
[1673967874756,0.4729,1586.7,1586.2,3.11662407]
[1673967874961,8.45991441,1586.9,1586.2,9.89375407]
[1673967875179,8.45991441,1586.9,1586.2,9.95975407]
[1673967875384,15.72066407,1586.8,1586.2,0.539]
[1673967875595,3.11662407,1586.7,1586.1,0.5391]
[1673967875831,1.31166241,1586.6,1586.0,6.3709]
[1673967876057,17.03414648,1586.6,1586.0,6.3709]
[1673967876272,3.58952407,1586.5,1586.0,0.066]
[1673967876425,6.77613,1586.5,1586.0,6.30516]
[1673967876766,0.5389,1586.5,1586.0,6.37116]
[1673967876976,0.4729,1586.5,1586.0,6.37116]
[1673967877185,0.5389,1586.6,1586.0,6.37116]
[1673967877368,6.30276,1586.7,1586.0,16.26605407]
[1673967877369,0.5389,1586.7,1586.0,16.26605407]
[1673967877576,0.5388,1586.8,1586.1,3.11662407]
[1673967877839,1.0,1586.8,1586.1,3.11662407]
[1673967878010,3.11662407,1586.7,1586.0,8.75626]
[1673967878389,12.6064,1586.5,1586.0,0.5371]
[1673967878537,3.11662407,1586.4,1586.0,0.054]
[1673967878733,6.30405,1586.3,1585.9,0.05618851]
[1673967878950,9.48667407,1586.3,1585.9,0.05618851]
[1673967879273,0.94866741,1586.2,1585.9,0.05618851]
[1673967879488,7.72631741,1586.2,1585.9,0.05618851]
[1673967879696,0.066,1586.2,1586.0,3.11662407]
[1673967879904,6.77645,1586.5,1585.9,15.78390258]
[1673967880112,6.77645,1586.5,1586.2,0.198]
[1673967880113,6.83245,1586.5,1586.2,0.198]
[1673967880340,16.26255407,1586.5,1586.2,0.198]
[1673967880731,6.84238,1586.5,1586.2,0.198]
[1673967881100,7.684007,1586.5,1586.2,0.198]
[1673967881321,13.987187,1586.5,1586.2,0.198]
[1673967881780,3.11662407,1586.4,1586.2,0.198]
[1673967881990,18.91191,1586.3,1586.2,0.198]
[1673967882224,22.56753407,1586.3,1586.2,0.198]
[1673967882426,24.35128748,1586.3,1586.2,0.198]
[1673967882869,21.23466341,1586.3,1586.2,0.198]
[1673967883522,12.67394,1586.3,1586.2,0.198]
[1673967883682,0.066,1586.3,1586.2,0.198]
[1673967883893,6.36918,1586.5,1586.2,0.198]
[1673967884116,0.066,1586.5,1586.2,0.198]
[1673967884344,6.36907,1586.6,1586.2,0.198]
[1673967884680,0.066,1586.6,1586.2,6.50234]
[1673967884839,13.14403,1586.7,1586.2,6.56834]
[1673967885055,12.67113,1586.7,1586.2,6.56834]
[1673967885380,12.67113,1586.7,1586.2,0.264]
[1673967885600,12.67113,1586.7,1586.2,0.198]
[1673967885803,6.30282,1586.6,1586.2,0.198]
[1673967886015,0.066,1586.6,1586.2,0.198]
[1673967886231,6.36851,1586.7,1586.2,0.198]
[1673967886564,6.36851,1586.7,1586.6,0.066]
[1673967886926,12.67121,1586.7,1586.6,0.066]
[1673967887138,14.568543,1586.7,1586.6,0.066]
[1673967887484,15.041443,1586.7,1586.6,0.066]
[1673967887662,8.738743,1586.7,1586.6,0.066]
[1673967888123,0.066,1586.7,1586.6,0.066]
[1673967888336,6.36758,1587.0,1586.6,0.066]
[1673967888523,6.30159,1586.9,1586.6,0.066]
[1673967888741,6.36759,1586.9,1586.6,0.066]
[1673967889344,0.4728,1586.8,1586.6,0.066]
[1673967889556,13.288179,1586.8,1586.6,0.066]
[1673967889816,13.60476,1586.7,1586.6,0.066]
[1673967890027,16.73538407,1586.7,1586.6,0.066]
[1673967890238,16.73538407,1586.7,1586.2,0.198]
[1673967890239,0.066,1586.6,1586.2,0.198]
[1673967890395,18.91074,1586.4,1586.2,0.198]
[1673967890607,0.473,1586.3,1586.2,0.198]
[1673967890830,6.77697,1586.3,1586.2,0.198]
[1673967891130,6.84297,1586.3,1586.2,0.198]
[1673967891378,0.066,1586.3,1586.2,0.23245766]
[1673967891667,0.002,1586.3,1586.2,0.23245766]
[1673967891903,0.052,1586.5,1586.2,0.23245766]
[1673967892115,6.84135,1586.7,1586.2,0.23245766]
[1673967892286,6.36845,1586.7,1586.2,3.34908173]
[1673967892497,0.066,1586.7,1586.3,3.11662407]
[1673967892708,0.82900001,1586.8,1586.4,9.45457738]
[1673967892918,0.82900001,1586.8,1586.5,3.11662407]
[1673967893182,0.82900001,1586.8,1586.5,15.72265407]
[1673967893349,0.82900001,1586.8,1586.6,9.92661304]
[1673967893597,0.82900001,1586.8,1586.7,3.11662407]
[1673967893798,0.82900001,1586.8,1586.7,4.11662407]
[1673967893999,0.82900001,1586.8,1586.7,9.89190407]
[1673967894213,0.82900001,1586.8,1586.7,9.95790407]
[1673967894422,0.82900001,1586.8,1586.7,0.723]
[1673967894695,0.82900001,1586.8,1586.7,2.22078134]
[1673967894895,0.82900001,1586.8,1586.7,2.22077262]
[1673967895216,17.74204581,1586.8,1586.6,0.05]
[1673967895427,17.74204581,1586.8,1585.9,2.42122642]
[1673967895428,23.25972865,1586.7,1585.9,0.05618851]
[1673967895737,18.91251,1586.3,1585.9,0.11818851]
[1673967895907,18.91431,1586.1,1585.9,0.11818851]
[1673967896120,6.77827,1586.0,1585.9,0.05618851]
[1673967896371,13.14944,1586.0,1585.9,0.05618851]
[1673967896683,15.44097237,1586.0,1585.9,0.05618851]
[1673967898148,19.19433817,1586.0,1585.9,0.05618851]
[1673967899373,18.55759644,1586.0,1585.9,0.05618851]